Cogmind - Beta 17 @@@ ROGUE MODE // 2026.07.07 @ 12:42:11 Player: Pitt Result: Destroyed by G-34 Mercenary with Small Laser Performance ------------- Evolutions (1) 500 Regions Visited (2) 400 Robots Destroyed (31) 155 Value Destroyed (684) 684 Prototype IDs (0) 0 Alien Tech Used (0) 0 Bonus (0) 0 TOTAL SCORE: 1739 Bonus ------- None Cogmind --------- Core Integrity 0/400 Matter 300/300 Energy 100/100 System Corruption 0% Temperature Cool (6) Movement Core (100) Ox1 Location -9/Materials Parts ------- > --- POWER (1) -------- (None) > --- PROPULSION (3) --- (None) > --- UTILITY (3) ------ Small Storage Unit Machine Analyzer Sensor Array > --- WEAPON (2) ------- (None) > --- INVENTORY (8) ---- Improved Heat Sink Structural Scanner Improved Terrain Scanner Light Armor Plating Hacking Suite Recalibrator Mini Grenade Launcher Mining Laser Peak State ------------ > --- POWER ------------ Deuterium Engine > --- PROPULSION ------- Improved Treads Improved Treads Improved Treads > --- UTILITY ---------- Small Storage Unit Machine Analyzer Sensor Array > --- WEAPON ----------- Scythe Scythe > --- INVENTORY -------- Deuterium Engine Improved Heat Sink Structural Scanner Improved Terrain Scanner Recalibrator Mini Grenade Launcher Mining Laser [Rating: 21] Favorites ----------- Power Deuterium Engine Engine Deuterium Engine Propulsion Improved Treads Treads Improved Treads Leg Aluminum Leg Utility Small Storage Unit Device Seismic Detector Storage Small Storage Unit Processor Machine Analyzer Weapon Scythe Ballistic Gun Assault Rifle Special Weapon Mining Laser Slashing Weapon Scythe Build | -11 -10 -9 ------- Run | Yrd Mat Mat Slots Evolved 2 | . . 2 Power . | . . . Propulsion 1 | . . 1 Utility 1 | . . 1 Weapon . | . . . Parts Attached 19 | 7 5 7 Power 4 | 1 1 2 Engine 4 | 1 1 2 Core . | . . . Reactor . | . . . Propulsion 6 | 2 3 1 Treads 4 | . 3 1 Leg 2 | 2 . . Wheel . | . . . Hover . | . . . Flight . | . . . Utility 4 | 2 . 2 Device 2 | 1 . 1 Storage 1 | 1 . . Processor 1 | . . 1 Hackware . | . . . Protection . | . . . Artifact . | . . . Weapon 5 | 2 1 2 Energy Gun . | . . . Energy Cannon . | . . . Ballistic Gun 2 | 2 . . Ballistic Cannon . | . . . Launcher . | . . . Special Weapon 1 | . 1 . Impact Weapon . | . . . Slashing Weapon 2 | . . 2 Piercing Weapon . | . . . Special Melee Weapon . | . . . Unidentified Prototypes . | . . . Parts Lost 6 | . . 6 Power 1 | . . 1 Propulsion 3 | . . 3 Utility . | . . . Weapon 2 | . . 2 Highest Loss Streak 4 | . . 4 To Critical Strikes 1 | . . 1 Average Backups 7 | 4 7 8 Power . | . 1 . Propulsion . | 1 1 . Utility 4 | 1 4 4 Weapon 1 | . 1 2 Tool/Special . | . . . Unused Backups 11 | . 1 10 Power 1 | . . 1 Propulsion 1 | . 1 . Utility 8 | . . 8 Weapon 1 | . . 1 Tool/Special . | . . . Average Slot Usage (%) 91 | . 100 87 Engine 11 | . 14 10 Treads 19 | . 10 23 Leg 5 | . 17 . Device 11 | . 14 11 Storage 11 | . 14 11 Processor 7 | . . 10 Ballistic Gun 9 | . 26 1 Slashing Weapon 13 | . . 19 Peak Build Rating 21 | 7 10 21 Average Rating 14 | 4 8 18 On Entrance 5 | . 7 10 Avg Prop Armor Cover (%) 7 | . 7 . Naked Turns . | . . . Heaviest Build 19 | 14 14 19 Greatest Support 69 | 20 46 69 Greatest Overweight (x) 2 | . . 2 Average Overweight (x) . | . . . Largest Inventory Capacity 8 | 8 8 8 Average Capacity 7 | 6 8 8 Most Carried 8 | 7 8 8 Average Carried 7 | 4 7 7 Final Capacity 8 | 8 8 8 Final Carried 8 | 6 8 8 Class Distribution -------------------- 100% | Mutant Dominant Class ---------------- Mutant | -10/Materials Mutant | -9/Materials Resources | -11 -10 -9 ----------- Run | Yrd Mat Mat Matter Collected 560 | 250 157 153 Remotely . | . . . Salvage Created 861 | 82 211 568 Parts 64 | 6 15 43 Haulers Intercepted . | . . . Recyclers Shooed . | . . . Parts Field Recycled . | . . . Retrieved Matter . | . . . Parts Self-Destructed . | . . . Prevented . | . . . Parts Restored . | . . . Kills | -11 -10 -9 ------- Run | Yrd Mat Mat Combat Hostiles Destroyed 19 | . 4 15 Melee 15 | . . 15 Guns 4 | . 4 . Classes Destroyed 11 | 2 3 6 Worker 3 | . 2 1 Builder 1 | . . 1 Tunneler 2 | 2 . . Recycler 1 | 1 . . Mechanic 1 | . 1 . Operator 1 | . . 1 Watcher 3 | . . 3 Swarmer 7 | . . 7 Grunt 9 | . 4 5 Duelist 1 | . . 1 Sentry 2 | . . 2 Best Kill Streak 8 | 2 3 8 Combat Bots Only 6 | . 3 6 Max Kills in Single Turn 2 | 1 2 1 Gunslinging . | . . . Exploded . | . . . Melee 1 | . . 1 Uniques/NPCs Destroyed . | . . . Combat | -11 -10 -9 -------- Run | Yrd Mat Mat Hostile Shots Fired 167 | . 28 139 Missed 42 | . 8 34 Hits 125 | . 20 105 Melee 7 | . . 7 Projectile 118 | . 20 98 Critical Strikes 2 | . . 2 Damage Taken 1446 | . 231 1215 Core 446 | . 44 402 Absorbed by Shields . | . . . Core Remaining (%) 91 | 100 82 . Volleys Fired 33 | 4 26 3 Largest 2 | 2 2 1 Hottest 100 | 40 100 20 Shots Fired 60 | 8 49 3 Gun 58 | 8 47 3 Cannon . | . . . Launcher . | . . . Special 2 | . 2 . Kinetic 58 | 8 47 3 Thermal 2 | . 2 . Explosive . | . . . Electromagnetic . | . . . Robot Hit Streak 9 | 3 9 1 Robot Miss Streak 5 | 1 5 2 Penetration Max . | . . . Secondary Targets . | . . . Shots Hit Robots 79 | 4 29 46 Core Hits 37 | 3 13 21 Critical Kills . | . . . Critical Parts Destroyed . | . . . Critical Strikes . | . . . Melee Attacks 82 | . . 82 Impact . | . . . Slashing 82 | . . 82 Piercing . | . . . Sneak Attacks 3 | . . 3 Combat Hostiles . | . . . Follow-up Attacks 10 | . . 10 Damage Inflicted 2285 | 55 766 1464 Guns 350 | 55 285 10 Cannons . | . . . Explosions 481 | . 481 . Melee 1454 | . . 1454 Ramming . | . . . Kinetic 350 | 55 285 10 Thermal 481 | . 481 . Explosive . | . . . Electromagnetic . | . . . Impact . | . . . Slashing 1454 | . . 1454 Piercing . | . . . Highest Corruption . | . . . Average Corruption . | . . . Corruption Purged . | . . . Corruption Blocked . | . . . Overload Shots . | . . . Overflow Damage 134 | . 96 38 Projectiles . | . . . Explosions 96 | . 96 . Melee 38 | . . 38 Knockbacks . | . . . Impact . | . . . Kinetic . | . . . Secondary . | . . . Self-Inflicted Damage . | . . . Shots . | . . . Rammed 1 | . . 1 Targets Rammed 1 | . . 1 Kicked . | . . . Crushed . | . . . Highest Temperature 20 | . 20 . Average Temperature 8 | . 8 . Received Heat Transfer 393 | . 126 267 Siege Activations . | . . . Martial Activations . | . . . Shielding Activations . | . . . Robots Disrupted . | . . . Combat Hostiles . | . . . Robots Corrupted . | . . . Combat Hostiles . | . . . Parts Fried . | . . . Impact Corruptions . | . . . Robots Melted . | . . . Combat Hostiles . | . . . Parts Melted . | . . . Heat Transferred 300 | . 300 . Parts Sabotaged . | . . . Parts Stolen . | . . . Parts Stripped . | . . . Power Chain Reactions . | . . . Alert | -11 -10 -9 ------- Run | Yrd Mat Mat Maximum Alert Level . | . . . Low Security (%) 100 | 100 100 100 Level 1 . | . . . Level 2 . | . . . Level 3 . | . . . Level 4 . | . . . Level 5 . | . . . High Security . | . . . Max Security . | . . . Peak Influence 198 | 10 168 198 Initial 37 | . . 37 Average 64 | 1 108 57 Influence Increases 724 | 15 225 484 Destroy 0b10 Robot/C 380 | . 80 300 Destroy 0b10 Robot/NC 60 | 15 15 30 Destroy Leader 106 | . 30 76 Successful Hack 18 | . 8 10 Disable Machine 60 | . 45 15 Destroy Structure 40 | . 32 8 Lose Combat Pursuer 60 | . 15 45 Influence Decreases 552 | 15 135 402 Entered New Map 53 | . . 53 Time Decay 439 | 15 135 289 Lost Part 60 | . . 60 Squads Dispatched 3 | . 2 1 Investigation . | . . . Extermination . | . . . Reinforcement 3 | . 2 1 Assault . | . . . Garrison . | . . . Intercept . | . . . Searches Triggered . | . . . Construction Impeded . | . . . Haulers Reinforced . | . . . Active Scanning Responses . | . . . Cargo Convoy Interrupts . | . . . Stealth | -11 -10 -9 --------- Run | Yrd Mat Mat Distress Signals 4 | . . 4 Communications Jammed . | . . . Distress Signals . | . . . Times Spotted 39 | . 11 28 Peak Tracking Total 5 | . 5 5 Tactical Retreats 3 | . 1 2 Traps | -11 -10 -9 ------- Run | Yrd Mat Mat Traps Triggered . | . . . Indirectly . | . . . Trap Hack Attempts . | . . . Triggered . | . . . Disarmed . | . . . Reprogrammed . | . . . Reused . | . . . Traps Extracted . | . . . Installed . | . . . Triggered . | . . . Objects Rigged 5 | . 5 . Exploded 1 | . 1 . Machines | -11 -10 -9 ---------- Run | Yrd Mat Mat Machines Disabled 4 | . 3 1 Max in Single Turn 3 | . 3 1 Machines Repaired . | . . . Machines Dismantled . | . . . Machines Sabotaged . | . . . Overloaded Fab Kills . | . . . Hacking | -11 -10 -9 --------- Run | Yrd Mat Mat Machines Accessed 8 | . 3 5 Terminals 6 | . 2 4 Fabricators . | . . . Repair Stations 2 | . 1 1 Recycling Units . | . . . Scanalyzers . | . . . Garrison Access . | . . . Total Hacks 17 | . 6 11 Successful 6 | . 2 4 Failed 11 | . 4 7 Catastrophic . | . . . Database Lockouts . | . . . Manual 8 | . 4 4 Terminals 14 | . 5 9 Fabricators . | . . . Repair Stations 3 | . 1 2 Recycling Units . | . . . Scanalyzers . | . . . Garrison Access . | . . . Terminal Hacks 4 | . 1 3 Emergency Access Points 1 | . . 1 Alert Level 1 | . . 1 Dispatch Records 1 | . . 1 Zone Layout 1 | . 1 . Fabricator Hacks . | . . . Repair Station Hacks . | . . . Recycling Unit Hacks . | . . . Scanalyzer . | . . . Garrison Access Hacks . | . . . Unauthorized Hacks 2 | . 1 1 Terminals 2 | . 1 1 Detonate 1 | . 1 . Operators 1 | . . 1 Fabricators . | . . . Repair Stations . | . . . Recycling Units . | . . . Scanalyzers . | . . . Garrison Access . | . . . Data Cores Recovered . | . . . Used . | . . . Hacking Detections 7 | . 3 4 Full Trace Events . | . . . Feedback Events . | . . . Feedback Blocked . | . . . Robot Schematics Acquired . | . . . Robots Built . | . . . Authchips . | . . . Time . | . . . Total Robot Build Rating . | . . . Part Schematics Acquired . | . . . Parts Built . | . . . Authchips . | . . . Time . | . . . Total Part Build Rating . | . . . Part Studies Acquired . | . . . Parts Repaired . | . . . Time . | . . . Parts Recycled . | . . . Recycled Matter . | . . . Retrieved Matter . | . . . Retrieved Components . | . . . Parts Scanalyzed . | . . . Part Schematics Acquired . | . . . Parts Damaged . | . . . Bothacking | -11 -10 -9 ------------ Run | Yrd Mat Mat Used RIF Installer . | . . . Robots Hacked . | . . . Non-combat . | . . . Combat . | . . . Robot Hacks Applied . | . . . Relay Couplers Released . | . . . Fabnet Peak Effective % . | . . . Robots Rewired . | . . . Allies Hacked . | . . . Hacks Repelled . | . . . Allies | -11 -10 -9 -------- Run | Yrd Mat Mat Total Allies . | . . . Largest Group . | . . . Highest-Rated Group . | . . . Highest-Rated Ally . | . . . Total Orders . | . . . Ally Attacks . | . . . Total Damage . | . . . Kills . | . . . Allies Corrupted . | . . . Allies Melted . | . . . Intel | -11 -10 -9 ------- Run | Yrd Mat Mat Active Infowar (turns) 971 | 1 310 660 Sensors 332 | . . 332 Seismic 626 | 1 310 315 Machine Analysis 631 | . . 631 Robot Analysis Total . | . . . Derelict Logs Recovered . | . . . Drone Launches . | . . . Drone Recoveries . | . . . Exploration | -11 -10 -9 ------------- Run | Yrd Mat Mat Turns Passed 1114 | 144 310 660 Spaces Moved 509 | 102 142 265 Core 18 | 10 . 8 Treads 367 | . 110 257 Legs 124 | 92 32 . Wheels . | . . . Hover . | . . . Flight . | . . . Fastest Speed 50 | 50 120 100 Average Speed 147 | 113 150 158 Slowest Speed 160 | 120 160 160 Overloaded Moves . | . . . Propulsion Burnouts . | . . . Robots Hopped . | . . . Potential Cave-ins . | . . . Cave-ins Triggered . | . . . Exploration Rate (%) 18 | 6 25 25 Regions Visited 2 Branch Regions . Pre-discovered Areas . | . . . Known Exits Taken . | . . . Unknown Exits Taken 2 | 1 1 . Scrap Searched . | . . . Spaces Dug 10 | . 2 8 Terrain Destroyed 67 | . 59 8 Melee 8 | . . 8 Projectile 2 | . 2 . AOE 57 | . 57 . Terrain Rammed . | . . . Walls Destroyed . | . . . Machines Disabled . | . . . Actions | -11 -10 -9 --------- Run | Yrd Mat Mat Total 707 | 122 189 396 Wait 36 | . 3 33 Move 507 | 101 141 265 Hop . | . . . Pick Up 23 | 10 5 8 Fast Attach 5 | 3 1 1 Attach 6 | 4 . 2 Detach . | . . . Swap 13 | . 7 6 Drop 14 | . 6 8 Fire 33 | 4 26 3 Melee 69 | . . 69 Ram 1 | . . 1 Kick . | . . . Crush . | . . . Escape Stasis . | . . . Rewire . | . . . Trap . | . . . Miscellaneous . | . . . Route ------- -11/Scrapyard -10/Materials (discovered 2 exits: *Mat / [Min]) -9/Materials (discovered 1 exit: [*Min]) History --------- Turn | Location | Event 3 | -11/Scrapyard | Discovered new exit (range 15) 145 | -11/Scrapyard | Entered Materials 193 | -10/Materials | Discovered new exit (range 16) 360 | -10/Materials | Build established: Mutant 402 | -10/Materials | Discovered new exit (range 15) 455 | -10/Materials | Entered another Materials area 455 | -9/Materials | Evolved 2 slots: Propulsion x1, Utility x1 1054 | -9/Materials | Discovered new exit (range 8) 1072 | -9/Materials | Core integrity fell below 50% 1092 | -9/Materials | Core integrity fell below 20% 1115 | -9/Materials | Destroyed by G-34 Mercenary with Small Laser Last Messages --------------- 01088_ K-01 Serf collects debris. 01090_ Deuterium Engine destroyed. 01090_ R-06 Scavenger collects Lgt. Assault Rifle. 01091_ L-31 Rogue destroyed. 01092_ K-01 Serf collects debris. 01092_ R-06 Scavenger collects Core Shielding. 01095_ K-01 Serf collects debris. 01096_ R-06 Scavenger collects Imp. Aluminum Leg. 01097_ K-01 Serf destroyed. 01100_ K-01 Serf collects debris. 01106_ Scythe destroyed. 01107_ K-01 Serf collects debris. 01108_ R-06 Scavenger collects Sml. Matter Pod. 01108_ R-06 Scavenger collects Wheel. 01108_ Slammed into G-34 Mercenary. 01108_ Sensor Array broken. 01108_ Destabilizing: Short circuit. 01110_ K-01 Serf collects debris. 01113_ Connecting with Repair Station... 01114_ K-01 Serf collects debris. Map ----- +----------------------------------------------------+ | ?????????????????????????????????????????????????? | | ?????????????????????????????????????????????????? | | ?????????????????????????????????????????????????? | | ?????????????????????????????????????????????????? | | ?????????????????????????????????????????????????T | | ?????????????????????????????????????????????????? | | ?????????????????????????????????????????????????? | | ?????????????????????????????????????????????????? | | ?????????????????????????????????????????????????? | | ???????????? ?????????????????????????????????? | | ???????????# ???????? ????????????????????????? | | ???????????# ???"""?? ?"""????"""?????????????? | | ???????????# ??"""""? """""??"""""????????????? | | ???????????# ??"""""? """"" """""????????????? | | ???????????# ??"""""? """"" """""????????????? | | ???????????# ???"""?? """ """?????????????? | | ???????????+ ???????? ?? ?????????????? | | ???????????# ???????? ?? ??????????????? | | ???????????# ???????? ?? ??????????????? | | ???????????# ???????? ?? ??????????????? | | ??######???# ########? ?? ???????????????? | | ?## ??# # #?# ?? ???????????????? | | ?# ?# # """ #?# #??# #???????????????? | | ?# # + """ #?# #??# #???????????????? | | ?# # # """ ###/#### #???????????????? | | ?# # # @u # #???????????????? | | ?# # # #""" # #"""????????????? | | ?# ?# # =#"R % # #"""????????????? | | ?# ##???# = # """ %#"""u g#% #""" ! #????????? | | ?###???????#*% # """% # k %/k + #????????? | | ???????????# # """ !# # %# =/% ????? | | ???????????# # """ !### ####% #??#####= ????? | | ???????????# # """ #?###??" #??????????????? | | ############ # #?????? #??????????????? | | %+ % # ########?????? #??????????????? | | ##### # #########????? < #??????????????? | | ????# # # "T" #????? #??????????????? | | ????# +% + #????? #??????????????? | | ##### # # % #????"" #??????????????? | | + # #########????## ##??????????????? | | ############ ##????????????? #???????????????? | | #?????????# #????????????? +???????????????? | | #?????????# ! #????????????? #???????????????? | | #?????????# #????????????? ????????????????? | | #?????????# #????????????????????????????????? | | #?????????# #????????????????????????????????? | | #?????????### ######?????????????????????????????? | | ????????????# # #?????????????????????????????? | | ????????????# + #?????????????????????????????? | | ??###+####### # #?????"T"?????????????????????? | +----------------------------------------------------+ Best States ------------- Heat Dissipation 28 Energy Generation 14 Energy Capacity 275 Matter Stores 300 Matter Capacity 300 Sight Range 16 Robot Scan Range 14 Terrain Scan Density 10 Evasion (%) 55 Recoil Reduction 3 Item Schematics ----------------- None Robot Schematics ------------------ None Fabricated ------------ Nothing Repaired ---------- Nothing Studied --------- None Alien Tech Used ----------------- None Achievements -------------- None Challenges ------------ None Game ------ Seed LatentRestorationLauncher Manual? 0 Play Time 00:19:02 Cumulative 266.6 hours Start 2026.07.07 @ 12:24:56 End 2026.07.07 @ 12:42:11 Sessions 1 Manual Loads 0 Difficulty Rogue Special Mode None Game No. 413 Rogue 413 Adventurer 0 Explorer 0 Win Type - Total 0 Types 0/0/0/0/0/0/0/0/0/0 Lore% 51 Gallery% 50 Achievement% 31 Wizard Run 0 Options --------- Layout 0 ASCII 0 Keyboard 1 Movement Numpad Keybinds 0 Fullscreen 1 Font 18/SmallcapsGlow Map View 76x50 Zoom Use 0% Tactical HUD 1 Map Filters NONE Filters NONE Steam 1 RUN: 250f379a-6164-4944-86b7-e6768dc2f0f3